[Event "-chT Youth Countries 2019"]
[Site "Wuerzburg"]
[Date "2019.10.03"]
[Round "3.3"]
[White "Lohr, Maximilian"]
[Black "Wu, Luka"]
[Result "1-0"]
[ECO "B99"]
[WhiteElo "1996"]
[BlackElo "2117"]
[Annotator "NA"]
[PlyCount "99"]
[EventDate "2019.10.02"]
[EventType "team-tourn"]
[EventRounds "7"]
[EventCountry "GER"]
[SourceTitle "playchess.com"]
[Source "ChessBase"]
[SourceQuality "1"]
[WhiteTeam "Bayern 2"]
[BlackTeam "Baden 1"]
[TimeControl "40/5400+30:1800+30"]

1. e4 {[%emt 0:00:00]} c5 {[%emt 0:00:00]} 2. Nf3 {[%emt 0:00:00]} d6 {[%emt 0:00:00]} 3. d4 {[%emt 0:00:00]} cxd4 {[%emt 0:00:00]} 4. Nxd4 {[%emt 0:00:00]} Nf6 {[%emt 0:00:00]} 5. Nc3 {[%emt 0:00:00]} a6 {[%emt 0:00:00]} 6. Bg5 {[%emt 0:00:00]} e6 {[%emt 0:01:22]} 7. f4 {[%emt 0:00:00]} Nbd7 {[%emt 0:00:08]} 8. Qf3 {[%emt 0:00:07]} Be7 {[%emt 0:00:57]} 9. O-O-O {[%emt 0:00:08]} Qc7 {[%emt 0:00:04]} 10. g4 {[%emt 0:00:05]} b5 {[%emt 0:00:13]} 11. Bxf6 {[%emt 0:01:11]} Nxf6 {[%emt 0:00:07]} 12. g5 {[%emt 0:00:25]} Nd7 {[%emt 0:00:24]} 13. Kb1 {[%emt 0:07:55]} Bb7 {[%emt 0:06:15]} 14. Bh3 {[%emt 0:04:02]} g6 {[%emt 0:04:25]} 15. Rhe1 {[%emt 0:08:24]} O-O-O {[%emt 0:11:49]} 16. Bxe6 {[%emt 0:03:23]} fxe6 {[%emt 0:00:06]} 17. Nxe6 {[%emt 0:00:05]} Qc6 {[%emt 0:00:41]} 18. Nd5 {[%emt 0:05:34]} Rde8 {[%emt 0:03:17]} 19. Nd4 {[%emt 0:00:32]} Qc4 {[%emt 0:09:31]} 20. b3 {[%emt 0:00:09]} Qc5 {[%emt 0:01:30]} 21. Ne6 {[%emt 0:00:05]} Qa3 {[%emt 0:04:42]} 22. Qc3+ {[%emt 0:00:21]} Nc5 {[%emt 0:01:35]} 23. Nxe7+ {[%emt 0:00:27]} Kb8 {[%emt 0:01:59]} 24. Nxc5 {[%emt 0:06:13]} Qxc5 {[%emt 0:00:06]} 25. Qxc5 {[%emt 0:00:05]} dxc5 {[%emt 0:00:04]} 26. Nd5 {[%emt 0:00:04]} Bxd5 {[%emt 0:00:11]} 27. exd5 {[%emt 0:00:36]} Kc7 {[%emt 0:00:08]} 28. c4 {[%emt 0:00:18]} Kd6 29. Kc2 {[%emt 0:00:27]} Rhf8 {[%emt 0:02:39]} 30. Rxe8 {[%emt 0:01:21]} Rxe8 {[%emt 0:00:05]} 31. Kd3 {[%emt 0:00:05]} Kd7 {[%emt 0:00:41]} 32. h4 {[%emt 0:00:43]} Rf8 {[%emt 0:00:45]} 33. Rf1 {[%emt 0:01:32]} Rf7 {[%emt 0:01:14]} 34. Ke4 {[%emt 0:00:29]} Re7+ {[%emt 0:00:00]} 35. Kf3 {[%emt 0:00:06]} Re8 {[%emt 0:00:32]} 36. h5 {[%emt 0:00:40]} bxc4 {[%emt 0:00:47]} 37. bxc4 {[%emt 0:00:05]} Rb8 {[%emt 0:00:18]} 38. hxg6 {[%emt 0:01:01]} hxg6 {[%emt 0:00:03]} 39. Rh1 {[%emt 0:01:50]} Rb4 {[%emt 0:00:05]} 40. Rh7+ {[%emt 0:00:19]} Kd6 {[%emt 0:02:57]} 41. Rh6 {[%emt 0:30:06]} Rxc4 {[%emt 0:30:04]} 42. Rxg6+ {[%emt 0:00:03]} Kxd5 {[%emt 0:00:06]} 43. Rxa6 {[%emt 0:00:03]} Rc1 {[%emt 0:00:09]} 44. g6 {[%emt 0:03:50]} Rf1+ {[%emt 0:10:17]} 45. Kg4 {[%emt 0:05:55]} Rg1+ {[%emt 0:00:23]} 46. Kf5 {[%emt 0:00:09]} c4 {[%emt 0:00:08]} 47. Ra8 {[%emt 0:00:38]} Kd6 48. Kf6 {[%emt 0:00:10]} Kd7 {[%emt 0:03:38]} 49. g7 {[%emt 0:00:09]} c3 {[%emt 0:02:37]} 50. g8=Q {[%emt 0:00:08] normal} 1-0

[Event "-chT Youth Countries 2019"]
[Site "Wuerzburg"]
[Date "2019.10.03"]
[Round "3.4"]
[White "Post, Hugo"]
[Black "Gutkin, Ilya"]
[Result "1/2-1/2"]
[ECO "B40"]
[WhiteElo "2204"]
[BlackElo "2047"]
[Annotator "NA"]
[PlyCount "127"]
[EventDate "2019.10.02"]
[EventType "team-tourn"]
[EventRounds "7"]
[EventCountry "GER"]
[SourceTitle "playchess.com"]
[Source "ChessBase"]
[SourceQuality "1"]
[WhiteTeam "Sachsen-Anhalt"]
[BlackTeam "Nordrhein-Westfalen"]
[TimeControl "40/5400+30:1800+30"]

1. e4 {[%emt 0:00:00]} c5 {[%emt 0:00:00]} 2. Nf3 {[%emt 0:00:00]} e6 {[%emt 0:00:00]} 3. d4 {[%emt 0:00:21]} cxd4 {[%emt 0:00:00]} 4. Nxd4 {[%emt 0:00:05]} Nf6 {[%emt 0:00:03]} 5. Nc3 {[%emt 0:00:49]} Nc6 {[%emt 0:00:05]} 6. Nxc6 {[%emt 0:00:36]} bxc6 {[%emt 0:00:17]} 7. e5 {[%emt 0:00:34]} Nd5 {[%emt 0:00:08]} 8. Ne4 {[%emt 0:00:40]} Qc7 {[%emt 0:00:08]} 9. f4 {[%emt 0:01:01]} Qb6 {[%emt 0:00:06]} 10. c4 {[%emt 0:02:55]} Bb4+ {[%emt 0:00:42]} 11. Ke2 {[%emt 0:00:14]} f5 {[%emt 0:00:28]} 12. exf6 {[%emt 0:09:41]} Nxf6 {[%emt 0:01:13]} 13. Be3 {[%emt 0:02:29]} Qd8 {[%emt 0:00:45]} 14. Nd6+ {[%emt 0:07:06]} Bxd6 {[%emt 0:00:12]} 15. Qxd6 {[%emt 0:00:05]} Bb7 {[%emt 0:00:38]} 16. f5 {[%emt 0:31:05]} exf5 {[%emt 0:08:35]} 17. Bg5 {[%emt 0:01:32]} Kf7 {[%emt 0:18:06]} 18. Bxf6 {[%emt 0:02:44]} Re8+ {[%emt 0:00:55]} 19. Kf2 {[%emt 0:05:28]} Qxf6 {[%emt 0:00:15]} 20. Qxf6+ {[%emt 0:03:31]} Kxf6 {[%emt 0:01:09]} 21. c5 {[%emt 0:01:54]} Re5 {[%emt 0:05:33]} 22. Rc1 {[%emt 0:06:31]} a5 {[%emt 0:02:30]} 23. Kf3 {[%emt 0:01:34]} Ba6 {[%emt 0:04:00]} 24. Bxa6 {[%emt 0:00:15]} Rxa6 {[%emt 0:00:06]} 25. Rhd1 {[%emt 0:00:04]} Ra7 {[%emt 0:01:53]} 26. Rd4 {[%emt 0:02:52]} Rb7 {[%emt 0:03:59]} 27. b3 {[%emt 0:00:47]} g6 {[%emt 0:09:40]} 28. Rc2 {[%emt 0:02:10]} Ke6 {[%emt 0:05:43]} 29. Rd6+ {[%emt 0:07:45]} Ke7 {[%emt 0:00:11]} 30. Rd4 {[%emt 0:00:11]} Rb4 {[%emt 0:06:44]} 31. Rxb4 {[%emt 0:03:00]} axb4 {[%emt 0:00:07]} 32. Rc4 {[%emt 0:00:02]} g5 {[%emt 0:00:33]} 33. Rxb4 {[%emt 0:00:31]} Rxc5 {[%emt 0:00:12]} 34. a4 {[%emt 0:00:16]} Rc3+ {[%emt 0:06:53]} 35. Ke2 {[%emt 0:00:09]} Rc2+ {[%emt 0:00:05]} 36. Kf3 {[%emt 0:01:05]} Kd6 {[%emt 0:03:31]} 37. a5 {[%emt 0:01:45]} Ra2 {[%emt 0:01:49]} 38. Rd4+ {[%emt 0:00:06]} Ke6 {[%emt 0:00:07]} 39. b4 {[%emt 0:00:50]} Ra4 {[%emt 0:07:38]} 40. Rc4 {[%emt 0:04:40]} c5 {[%emt 0:11:39]} 41. Rxc5 {[%emt 0:30:20]} Rxb4 {[%emt 0:30:05]} 42. Rc8 {[%emt 0:01:38]} Ra4 {[%emt 0:00:06]} 43. Ra8 {[%emt 0:00:08]} Ke5 {[%emt 0:00:00]} 44. a6 {[%emt 0:00:00]} Ra3+ {[%emt 0:00:00]} 45. Ke2 {[%emt 0:00:00]} d5 {[%emt 0:00:00]} 46. a7 {[%emt 0:00:00]} Kd4 {[%emt 0:00:00]} 47. h3 {[%emt 0:00:00]} g4 {[%emt 0:00:00]} 48. hxg4 {[%emt 0:00:00]} fxg4 {[%emt 0:00:00]} 49. g3 {[%emt 0:00:00]} Ra2+ {[%emt 0:00:00]} 50. Kf1 {[%emt 0:00:00]} h5 {[%emt 0:00:00]} 51. Kg1 {[%emt 0:00:00]} Ra5 {[%emt 0:01:59]} 52. Kg2 {[%emt 0:00:00]} Ra3 {[%emt 0:01:33]} 53. Kf2 {[%emt 0:00:00]} Rf3+ {[%emt 0:01:14]} 54. Kg2 {[%emt 0:00:00]} Rf7 {[%emt 0:00:32]} 55. Kg1 {[%emt 0:00:00]} Rd7 {[%emt 0:00:08]} 56. Rh8 {[%emt 0:00:00]} Rxa7 {[%emt 0:00:06]} 57. Rxh5 {[%emt 0:00:00]} Ke4 {[%emt 0:00:56]} 58. Rg5 {[%emt 0:00:03]} d4 {[%emt 0:01:08]} 59. Rxg4+ {[%emt 0:00:37]} Ke3 {[%emt 0:00:27]} 60. Rg8 {[%emt 0:02:16]} d3 {[%emt 0:02:31]} 61. Re8+ {[%emt 0:01:39]} Kf3 {[%emt 0:00:24]} 62. Rd8 {[%emt 0:01:51]} Ke2 {[%emt 0:01:13]} 63. Re8+ {[%emt 0:00:33]} Kd1 {[%emt 0:01:36] normal} 64. Rd8 {[%emt 0:00:54] normal} 1/2-1/2

[Event "-chT Youth Countries 2019"]
[Site "Wuerzburg"]
[Date "2019.10.03"]
[Round "3.4"]
[White "Lohvinov, Petro"]
[Black "Ravina, David"]
[Result "0-1"]
[ECO "C50"]
[WhiteElo "2117"]
[BlackElo "2087"]
[Annotator "NA"]
[PlyCount "42"]
[EventDate "2019.10.02"]
[EventType "team-tourn"]
[EventRounds "7"]
[EventCountry "GER"]
[SourceTitle "playchess.com"]
[Source "ChessBase"]
[SourceQuality "1"]
[WhiteTeam "Bayern 1"]
[BlackTeam "Hamburg/Schleswig-Holstein"]
[TimeControl "40/5400+30:1800+30"]

1. e4 {[%emt 0:00:00]} e5 {[%emt 0:00:00]} 2. Nf3 {[%emt 0:00:00]} Nc6 {[%emt 0:00:00]} 3. Bc4 {[%emt 0:00:00]} Bc5 {[%emt 0:00:00]} 4. d3 {[%emt 0:00:00]} Nf6 {[%emt 0:00:02]} 5. O-O {[%emt 0:00:45]} a6 {[%emt 0:00:22]} 6. c3 {[%emt 0:00:17]} Ba7 {[%emt 0:00:19]} 7. h3 {[%emt 0:14:24]} d6 {[%emt 0:00:11]} 8. Bb3 {[%emt 0:00:10]} h6 {[%emt 0:00:23]} 9. Re1 {[%emt 0:01:35]} g5 {[%emt 0:13:46]} 10. d4 {[%emt 0:03:34]} g4 {[%emt 0:01:56]} 11. dxe5 {[%emt 0:16:28]} gxf3 {[%emt 0:01:47]} 12. exf6 {[%emt 0:02:19]} Qxf6 {[%emt 0:08:57]} 13. Qxf3 {[%emt 0:03:41]} Qxf3 {[%emt 0:02:07]} 14. gxf3 {[%emt 0:00:00]} Ne5 {[%emt 0:00:15]} 15. Nd2 {[%emt 0:02:28]} Nd3 {[%emt 0:01:06]} 16. Re2 {[%emt 0:00:00]} Nf4 17. Re1 Rg8+ {[%emt 0:08:52]} 18. Kh2 {[%emt 0:02:42]} Bxf2 {[%emt 0:03:18]} 19. Rd1 {[%emt 0:00:01]} Bxh3 {[%emt 0:01:27]} 20. Nc4 {[%emt 0:00:33]} Rg2+ 21. Kh1 Ne2 {[%emt 0:01:09] normal} 0-1

[Event "-chT Youth Countries 2019"]
[Site "Wuerzburg"]
[Date "2019.10.03"]
[Round "3.4"]
[White "Eilenberg, Jonas"]
[Black "Hommer, Jeremy"]
[Result "1-0"]
[ECO "E16"]
[WhiteElo "2050"]
[BlackElo "2133"]
[Annotator "ChessBase"]
[PlyCount "61"]
[EventDate "2019.10.02"]
[EventType "team-tourn"]
[EventRounds "7"]
[EventCountry "GER"]
[SourceTitle "playchess.com"]
[Source "ChessBase"]
[SourceQuality "1"]
[WhiteTeam "Berlin"]
[BlackTeam "Niedersachsen"]
[TimeControl "40/5400+30:1800+30"]

1. d4 {[%emt 0:00:00]} e6 {[%emt 0:00:00]} 2. Nf3 {[%emt 0:00:00]} Nf6 {[%emt 0:00:00]} 3. c4 {[%emt 0:00:00]} b6 {[%emt 0:00:14]} 4. g3 {[%emt 0:00:00]} Bb7 {[%emt 0:04:15]} 5. Bg2 {[%emt 0:00:07]} Bb4+ {[%emt 0:02:19]} 6. Nbd2 {[%emt 0:01:16]} O-O {[%emt 0:03:12]} 7. a3 {[%emt 0:02:53]} Be7 {[%emt 0:04:25]} 8. O-O {[%emt 0:02:09]} d5 {[%emt 0:01:06]} 9. Ne5 {[%emt 0:01:21]} Nbd7 {[%emt 0:11:10]} 10. Qa4 {[%emt 0:02:27]} Nxe5 {[%emt 0:02:03]} 11. dxe5 {[%emt 0:00:01]} Nd7 {[%emt 0:01:10]} 12. Nf3 {[%emt 0:04:54]} c6 {[%emt 0:21:38]} 13. Rd1 {[%emt 0:05:10]} f6 {[%emt 0:09:04]} 14. Bh3 {[%emt 0:05:33]} Nc5 {[%emt 0:03:20]} 15. Qc2 {[%emt 0:00:41]} f5 {[%emt 0:00:12]} 16. b4 {[%emt 0:08:31]} Ne4 {[%emt 0:02:04]} 17. Nd4 {[%emt 0:05:18]} Qd7 {[%emt 0:01:35]} 18. f3 {[%emt 0:06:56]} Ng5 {[%emt 0:00:26]} 19. Bxg5 {[%emt 0:00:07]} Bxg5 {[%emt 0:00:14]} 20. f4 {[%emt 0:00:10]} Be7 {[%emt 0:00:13]} 21. c5 {[%emt 0:00:20]} Rac8 {[%emt 0:06:58]} 22. e4 {[%emt 0:04:38]} g6 {[%emt 0:00:04]} 23. exf5 {[%emt 0:00:58]} exf5 {[%emt 0:00:13]} 24. Kh1 {[%emt 0:05:57]} Rc7 {[%emt 0:02:40]} 25. Rg1 {[%emt 0:02:06]} h5 {[%emt 0:00:18]} 26. g4 {[%emt 0:02:09]} hxg4 {[%emt 0:00:08]} 27. Bxg4 {[%emt 0:00:05]} Kh7 {[%emt 0:02:09]} 28. e6 {[%emt 0:08:49]} Qe8 {[%emt 0:00:02]} 29. Nxf5 {[%emt 0:01:49]} gxf5 {[%emt 0:01:03]} 30. Bxf5+ {[%emt 0:00:06]} Kh8 {[%emt 0:05:11]} 31. Qc3+ {[%emt 0:00:25] normal} 1-0

[Event "-chT Youth Countries 2019"]
[Site "Wuerzburg"]
[Date "2019.10.03"]
[Round "3.4"]
[White "Deuer, Marius"]
[Black "Hecht, Jonas Christian"]
[Result "1-0"]
[ECO "C88"]
[WhiteElo "1993"]
[BlackElo "1775"]
[Annotator "NA"]
[PlyCount "67"]
[EventDate "2019.10.02"]
[EventType "team-tourn"]
[EventRounds "7"]
[EventCountry "GER"]
[SourceTitle "playchess.com"]
[Source "ChessBase"]
[SourceQuality "1"]
[WhiteTeam "Württemberg"]
[BlackTeam "Baden 2"]
[TimeControl "40/5400+30:1800+30"]

1. e4 {[%emt 0:00:00]} e5 {[%emt 0:00:00]} 2. Nf3 {[%emt 0:00:00]} Nc6 {[%emt 0:00:00]} 3. Bb5 {[%emt 0:00:00]} a6 {[%emt 0:00:00]} 4. Ba4 {[%emt 0:00:00]} Nf6 {[%emt 0:00:00]} 5. O-O {[%emt 0:00:06]} Be7 {[%emt 0:00:00]} 6. Re1 {[%emt 0:00:15]} b5 {[%emt 0:00:02]} 7. Bb3 {[%emt 0:00:05]} O-O {[%emt 0:00:06]} 8. a4 {[%emt 0:00:03]} Bb7 {[%emt 0:00:13]} 9. d3 {[%emt 0:00:27]} d6 {[%emt 0:00:04]} 10. c3 {[%emt 0:00:32]} Na5 {[%emt 0:00:56]} 11. Bc2 {[%emt 0:00:48]} c5 {[%emt 0:00:52]} 12. Nbd2 {[%emt 0:01:20]} Qc7 {[%emt 0:08:18]} 13. Nf1 {[%emt 0:02:00]} Rfe8 {[%emt 0:09:47]} 14. Ng3 {[%emt 0:01:08]} h6 {[%emt 0:00:40]} 15. h3 {[%emt 0:17:29]} Bf8 {[%emt 0:01:55]} 16. d4 {[%emt 0:04:52]} cxd4 {[%emt 0:03:43]} 17. cxd4 {[%emt 0:03:23]} Rac8 {[%emt 0:03:07]} 18. Bd3 {[%emt 0:02:31]} Bc6 {[%emt 0:13:02]} 19. b4 {[%emt 0:06:10]} Nb7 {[%emt 0:01:21]} 20. d5 {[%emt 0:01:29]} Bd7 {[%emt 0:02:04]} 21. a5 {[%emt 0:02:26]} Qc3 {[%emt 0:01:49]} 22. Rb1 {[%emt 0:03:15]} Kh7 {[%emt 0:04:23]} 23. Be3 {[%emt 0:06:03]} g6 {[%emt 0:01:17]} 24. Bb6 {[%emt 0:02:22]} Qa3 {[%emt 0:05:23]} 25. Rb3 {[%emt 0:07:18]} Qa4 {[%emt 0:00:08]} 26. Qb1 {[%emt 0:00:42]} Nxd5 {[%emt 0:06:23]} 27. exd5 {[%emt 0:05:49]} f5 {[%emt 0:00:08]} 28. Nh4 {[%emt 0:12:21]} Be7 {[%emt 0:01:45]} 29. Nxg6 {[%emt 0:01:12]} Kxg6 {[%emt 0:00:13]} 30. Bxf5+ {[%emt 0:00:08]} Bxf5 {[%emt 0:00:07]} 31. Qxf5+ {[%emt 0:00:04]} Kg7 {[%emt 0:00:06]} 32. Nh5+ {[%emt 0:00:03]} Kh8 {[%emt 0:00:28]} 33. Qg6 {[%emt 0:00:04]} Bf8 {[%emt 0:00:06]} 34. Nf6 {[%emt 0:00:02] normal} 1-0

[Event "-chT Youth Countries 2019"]
[Site "Wuerzburg"]
[Date "2019.10.03"]
[Round "3.4"]
[White "Schumann, Rabea"]
[Black "Boder, Jan"]
[Result "0-1"]
[ECO "A20"]
[WhiteElo "1922"]
[BlackElo "2087"]
[Annotator "NA"]
[PlyCount "92"]
[EventDate "2019.10.02"]
[EventType "team-tourn"]
[EventRounds "7"]
[EventCountry "GER"]
[SourceTitle "playchess.com"]
[Source "ChessBase"]
[SourceQuality "1"]
[WhiteTeam "Mecklenburg-Vorpommern"]
[BlackTeam "Rheinland-Pfalz"]
[TimeControl "40/5400+30:1800+30"]

1. c4 {[%emt 0:00:00]} e5 {[%emt 0:00:00]} 2. g3 {[%emt 0:00:00]} Nf6 {[%emt 0:00:00]} 3. Bg2 {[%emt 0:00:00]} d5 {[%emt 0:00:00]} 4. cxd5 {[%emt 0:00:00]} Nxd5 {[%emt 0:00:01]} 5. Nc3 {[%emt 0:00:11]} Nb6 {[%emt 0:00:06]} 6. Nf3 {[%emt 0:00:14]} Nc6 {[%emt 0:00:06]} 7. O-O {[%emt 0:00:14]} Be7 {[%emt 0:00:09]} 8. a3 {[%emt 0:00:26]} O-O {[%emt 0:00:12]} 9. b4 {[%emt 0:01:49]} Re8 {[%emt 0:00:29]} 10. d3 {[%emt 0:06:56]} Bf8 {[%emt 0:00:20]} 11. Be3 {[%emt 0:02:04]} a5 {[%emt 0:01:29]} 12. Bxb6 {[%emt 0:09:30]} cxb6 {[%emt 0:00:39]} 13. b5 {[%emt 0:00:57]} Nd4 {[%emt 0:00:29]} 14. Nxd4 {[%emt 0:09:42]} exd4 {[%emt 0:02:11]} 15. Nd5 {[%emt 0:06:25]} a4 {[%emt 0:03:00]} 16. Qc2 {[%emt 0:06:18]} Be6 {[%emt 0:02:34]} 17. Nf4 {[%emt 0:03:52]} Bb3 {[%emt 0:00:44]} 18. Qb2 {[%emt 0:01:26]} Qd7 {[%emt 0:02:23]} 19. Rfc1 {[%emt 0:02:23]} Bc5 {[%emt 0:01:27]} 20. Rc4 {[%emt 0:12:38]} Ra5 {[%emt 0:05:52]} 21. Qd2 {[%emt 0:14:55]} Rxb5 {[%emt 0:02:19]} 22. Rcc1 {[%emt 0:05:58]} Qe7 {[%emt 0:12:08]} 23. Nd5 {[%emt 0:05:45]} Qd6 {[%emt 0:04:51]} 24. Nb4 {[%emt 0:03:17]} Qe7 {[%emt 0:12:43]} 25. Nd5 {[%emt 0:00:44]} Qd7 {[%emt 0:00:24]} 26. Nb4 {[%emt 0:03:57]} g6 {[%emt 0:00:52]} 27. Rcb1 {[%emt 0:01:02]} Kg7 {[%emt 0:04:42]} 28. Rxb3 {[%emt 0:00:52]} axb3 {[%emt 0:00:02]} 29. Rb1 {[%emt 0:00:31]} Bxb4 {[%emt 0:00:49]} 30. axb4 {[%emt 0:00:06]} Rbe5 {[%emt 0:00:14]} 31. Bf3 {[%emt 0:00:43]} Qa4 {[%emt 0:00:16]} 32. Qb2 {[%emt 0:01:08]} Qxb4 {[%emt 0:00:06]} 33. Qxb3 {[%emt 0:00:13]} Qxb3 {[%emt 0:00:05]} 34. Rxb3 {[%emt 0:00:04]} b5 {[%emt 0:00:21]} 35. Bxb7 {[%emt 0:01:37]} Rb8 {[%emt 0:00:26]} 36. Be4 {[%emt 0:00:53]} b4 {[%emt 0:00:14]} 37. f4 {[%emt 0:00:34]} Rc5 {[%emt 0:00:05]} 38. Kf2 {[%emt 0:00:20]} Kf6 {[%emt 0:00:37]} 39. g4 {[%emt 0:00:51]} Ke6 {[%emt 0:00:44]} 40. f5+ {[%emt 0:00:26]} Ke5 {[%emt 0:00:22]} 41. fxg6 {[%emt 0:01:35]} fxg6 {[%emt 0:01:00]} 42. h4 {[%emt 0:04:18]} Rc3 {[%emt 0:00:09]} 43. Rb2 {[%emt 0:00:38]} b3 {[%emt 0:00:41]} 44. h5 {[%emt 0:05:40]} gxh5 {[%emt 0:00:23]} 45. gxh5 {[%emt 0:00:06]} Rc2 {[%emt 0:00:43]} 46. Rb1 {[%emt 0:00:21]} b2 {[%emt 0:00:05] normal} 0-1

[Event "-chT Youth Countries 2019"]
[Site "Wuerzburg"]
[Date "2019.10.03"]
[Round "3.4"]
[White "Glinzner, Alva"]
[Black "Lutz, Ruben"]
[Result "1/2-1/2"]
[ECO "C05"]
[WhiteElo "1897"]
[BlackElo "2112"]
[Annotator "NA"]
[PlyCount "93"]
[EventDate "2019.10.02"]
[EventType "team-tourn"]
[EventRounds "7"]
[EventCountry "GER"]
[SourceTitle "playchess.com"]
[Source "ChessBase"]
[SourceQuality "1"]
[WhiteTeam "Schleswig-Holstein"]
[BlackTeam "Sachsen"]
[TimeControl "40/5400+30:1800+30"]

1. e4 {[%emt 0:00:00]} e6 {[%emt 0:00:00]} 2. d4 {[%emt 0:00:00]} d5 {[%emt 0:00:00]} 3. Nd2 {[%emt 0:00:07]} Nf6 {[%emt 0:00:00]} 4. e5 {[%emt 0:00:39]} Nfd7 {[%emt 0:00:00]} 5. f4 {[%emt 0:00:35]} c5 {[%emt 0:00:00]} 6. c3 {[%emt 0:00:17]} Nc6 {[%emt 0:00:05]} 7. Ndf3 {[%emt 0:00:26]} Be7 {[%emt 0:00:14]} 8. Bd3 {[%emt 0:00:29]} cxd4 {[%emt 0:00:42]} 9. cxd4 {[%emt 0:00:30]} O-O {[%emt 0:00:12]} 10. Ne2 {[%emt 0:00:32]} Nb6 {[%emt 0:01:37]} 11. O-O {[%emt 0:01:56]} a5 {[%emt 0:00:21]} 12. Kh1 {[%emt 0:02:11]} a4 {[%emt 0:00:34]} 13. Bc2 {[%emt 0:02:02]} Nb4 {[%emt 0:04:10]} 14. Bb1 {[%emt 0:00:40]} Nc4 {[%emt 0:01:48]} 15. a3 {[%emt 0:02:11]} Nc6 {[%emt 0:00:05]} 16. Nc3 {[%emt 0:00:18]} b5 {[%emt 0:46:12]} 17. Nxb5 {[%emt 0:08:24]} Ba6 {[%emt 0:00:41]} 18. Nc3 {[%emt 0:01:13]} N6a5 {[%emt 0:10:20]} 19. Bc2 {[%emt 0:27:43]} Nb3 {[%emt 0:12:05]} 20. Rb1 {[%emt 0:02:26]} Qc7 {[%emt 0:07:31]} 21. Nxa4 Nxc1 {[%emt 0:08:20]} 22. Qxc1 {[%emt 0:06:43]} Rfc8 23. Rf2 {[%emt 0:02:50]} Bb5 {[%emt 0:01:35]} 24. Nc3 {[%emt 0:00:48]} Bd7 {[%emt 0:00:56]} 25. Nd1 {[%emt 0:07:20]} Rab8 {[%emt 0:00:32]} 26. b4 {[%emt 0:01:01]} Ra8 {[%emt 0:00:22]} 27. Rb3 {[%emt 0:01:39]} Qa7 {[%emt 0:01:10]} 28. Nc3 {[%emt 0:12:44]} Nxa3 {[%emt 0:00:30]} 29. Bd3 {[%emt 0:08:47]} Nc4 {[%emt 0:00:41]} 30. g4 {[%emt 0:03:27]} Rab8 {[%emt 0:01:16]} 31. Qb1 {[%emt 0:01:18]} g6 {[%emt 0:01:10]} 32. f5 {[%emt 0:01:20]} Be8 {[%emt 0:00:18]} 33. b5 {[%emt 0:01:44]} Ne3 {[%emt 0:02:02]} 34. h3 {[%emt 0:01:29]} Qb6 {[%emt 0:00:25]} 35. Na4 {[%emt 0:01:24]} Qa5 {[%emt 0:00:34]} 36. Ra2 {[%emt 0:00:38]} Qc7 {[%emt 0:00:30]} 37. Rc3 {[%emt 0:00:46]} Nc4 {[%emt 0:00:44]} 38. Rb3 {[%emt 0:01:07]} Na5 {[%emt 0:00:36]} 39. Rc3 {[%emt 0:00:28]} Nc4 {[%emt 0:00:07]} 40. fxe6 {[%emt 0:01:12]} fxe6 {[%emt 0:00:54]} 41. Rb3 {[%emt 0:08:11]} Na5 {[%emt 0:02:39]} 42. Rc2 {[%emt 0:03:16]} Qb7 {[%emt 0:02:04]} 43. Rxc8 {[%emt 0:04:29]} Rxc8 {[%emt 0:00:12]} 44. Rc3 {[%emt 0:01:26]} Nc4 {[%emt 0:00:46]} 45. Rb3 {[%emt 0:01:31]} Na5 {[%emt 0:00:29]} 46. Rc3 {[%emt 0:03:25]} Nc4 {[%emt 0:00:07]} 47. Rb3 {[%emt 0:00:46] normal} 1/2-1/2

[Event "-chT Youth Countries 2019"]
[Site "Wuerzburg"]
[Date "2019.10.03"]
[Round "3.4"]
[White "Riegel, Arinna"]
[Black "Danninger, Jannik"]
[Result "0-1"]
[ECO "A05"]
[WhiteElo "1894"]
[BlackElo "1990"]
[Annotator "NA"]
[PlyCount "86"]
[EventDate "2019.10.02"]
[EventType "team-tourn"]
[EventRounds "7"]
[EventCountry "GER"]
[SourceTitle "playchess.com"]
[Source "ChessBase"]
[SourceQuality "1"]
[WhiteTeam "Baden 1"]
[BlackTeam "Bayern 2"]
[TimeControl "40/5400+30:1800+30"]

1. Nf3 {[%emt 0:00:00]} Nf6 {[%emt 0:00:00]} 2. g3 {[%emt 0:00:00]} e6 {[%emt 0:00:00]} 3. Bg2 {[%emt 0:00:00]} Be7 {[%emt 0:00:13]} 4. O-O {[%emt 0:00:00]} O-O {[%emt 0:00:06]} 5. d4 {[%emt 0:00:08]} d5 {[%emt 0:00:07]} 6. c4 {[%emt 0:00:29]} dxc4 {[%emt 0:00:24]} 7. Qc2 {[%emt 0:00:14]} a6 {[%emt 0:00:07]} 8. a4 {[%emt 0:01:47]} Bd7 {[%emt 0:00:25]} 9. Ne5 {[%emt 0:02:50]} Nc6 {[%emt 0:03:48]} 10. Nxc6 {[%emt 0:15:49]} Bxc6 {[%emt 0:00:22]} 11. Bxc6 {[%emt 0:01:12]} bxc6 {[%emt 0:00:16]} 12. Rd1 {[%emt 0:08:32]} Qd5 {[%emt 0:02:07]} 13. Nd2 {[%emt 0:15:01]} Qxd4 {[%emt 0:03:24]} 14. Nxc4 {[%emt 0:01:58]} Qc5 {[%emt 0:02:03]} 15. Bf4 {[%emt 0:18:16]} Ng4 {[%emt 0:06:37]} 16. e3 {[%emt 0:03:47]} e5 {[%emt 0:02:00]} 17. b4 {[%emt 0:00:50]} Qxb4 {[%emt 0:02:05]} 18. Nxe5 {[%emt 0:00:26]} Nxe5 {[%emt 0:00:47]} 19. Bxe5 {[%emt 0:00:02]} c5 {[%emt 0:03:28]} 20. Rab1 {[%emt 0:06:10]} Qg4 {[%emt 0:03:50]} 21. Bxc7 {[%emt 0:01:58]} h5 {[%emt 0:07:00]} 22. h4 {[%emt 0:09:07]} Rfc8 {[%emt 0:01:59]} 23. Bd6 {[%emt 0:01:56]} Bxh4 {[%emt 0:07:39]} 24. f3 {[%emt 0:00:21]} Qxf3 {[%emt 0:00:08]} 25. gxh4 {[%emt 0:00:16]} Qxe3+ {[%emt 0:00:36]} 26. Qf2 {[%emt 0:00:43]} Qxf2+ {[%emt 0:01:43]} 27. Kxf2 {[%emt 0:00:01]} c4 {[%emt 0:00:13]} 28. Rb7 {[%emt 0:06:19]} Rc6 {[%emt 0:02:31]} 29. Be5 {[%emt 0:03:02]} c3 {[%emt 0:01:37]} 30. Rdd7 {[%emt 0:02:41]} c2 {[%emt 0:01:54]} 31. Rxf7 {[%emt 0:00:28]} c1=Q {[%emt 0:01:40]} 32. Rxg7+ {[%emt 0:00:57]} Kf8 {[%emt 0:00:29]} 33. Rbf7+ {[%emt 0:00:34]} Ke8 {[%emt 0:00:12]} 34. Re7+ {[%emt 0:00:27]} Kd8 {[%emt 0:00:25]} 35. Rd7+ {[%emt 0:00:33]} Kc8 {[%emt 0:00:12]} 36. Rde7 {[%emt 0:00:31]} Qd2+ {[%emt 0:06:51]} 37. Kf3 {[%emt 0:00:17]} Qd3+ {[%emt 0:00:34]} 38. Kf4 {[%emt 0:00:26]} Rc4+ {[%emt 0:00:23]} 39. Kg5 {[%emt 0:00:19]} Rg4+ {[%emt 0:00:34]} 40. Kf6 {[%emt 0:00:24]} Qf3+ {[%emt 0:02:28]} 41. Ke6 {[%emt 0:30:38]} Qc6+ {[%emt 0:30:53]} 42. Kf5 {[%emt 0:00:32]} Rxg7 {[%emt 0:00:30]} 43. Rxg7 {[%emt 0:00:31]} Qxa4 {[%emt 0:00:48] normal} 0-1